[Event "Titled Tuesday Blitz October 11 Early 2022"]
[White "Martinez Alcantara, Jose Eduardo"]
[Black "Gabdrakhmanov, Azat"]
[WhiteFideId "3805662"]
[BlackFideId "34189197"]
[WhiteElo "2703"]
[BlackElo "2233"]
[Result "1-0"]
[Round "07"]
[TimeControl "180+1"]
[Date "2022.10.11"]
[WhiteClock "0:00:44"]
[BlackClock "0:00:10"]

1. e4 {[%clk 0:03:00]}  c5 {[%clk 0:02:57]} 2. Nf3 {[%clk 0:03:01]}  e6 {[%clk 0:02:57]} 3. c3 {[%clk 0:03:01]}  d5 {[%clk 0:02:57]} 4. exd5 {[%clk 0:03:01]}  Qxd5 {[%clk 0:02:57]} 5. d4 {[%clk 0:03:02]}  Nf6 {[%clk 0:02:57]} 6. Be3 {[%clk 0:03:01]}  cxd4 {[%clk 0:02:57]} 7. cxd4 {[%clk 0:03:02]}  Nc6 {[%clk 0:02:55]} 8. Nc3 {[%clk 0:03:03]}  Qd6 {[%clk 0:02:54]} 9. Bc4 {[%clk 0:03:03]}  Be7 {[%clk 0:02:54]} 10. O-O {[%clk 0:03:03]}  O-O {[%clk 0:02:54]} 11. Rc1 {[%clk 0:03:02]}  Bd7 {[%clk 0:02:47]} 12. a3 {[%clk 0:03:00]}  Rac8 {[%clk 0:02:38]} 13. Qe2 {[%clk 0:02:59]}  Ng4 {[%clk 0:02:33]} 14. Ba2 {[%clk 0:02:43]}  Qb8 {[%clk 0:02:27]} 15. d5 {[%clk 0:02:39]}  exd5 {[%clk 0:02:18]} 16. Nxd5 {[%clk 0:02:40]}  Bd6 {[%clk 0:02:01]} 17. h3 {[%clk 0:02:39]}  Nxe3 {[%clk 0:02:00]} 18. Qxe3 {[%clk 0:02:36]}  Be6 {[%clk 0:01:58]} 19. Rcd1 {[%clk 0:02:19]}  Rfe8 {[%clk 0:01:53]} 20. Qg5 {[%clk 0:01:54]}  Kh8 {[%clk 0:01:41]} 21. Qh5 {[%clk 0:01:47]}  g6 {[%clk 0:01:06]} 22. Qh4 {[%clk 0:01:43]}  Bf8 {[%clk 0:00:31]} 23. Ng5 {[%clk 0:01:34]}  h6 {[%clk 0:00:30]} 24. Rfe1 {[%clk 0:01:18]}  Ne5 {[%clk 0:00:18]} 25. Nxe6 {[%clk 0:01:14]}  Rxe6 {[%clk 0:00:17]} 26. f4 {[%clk 0:01:03]}  Nc6 {[%clk 0:00:13]} 27. Rxe6 {[%clk 0:01:03]}  fxe6 {[%clk 0:00:14]} 28. Qf6+ {[%clk 0:00:46]}  Bg7 {[%clk 0:00:13]} 29. Qxe6 {[%clk 0:00:47]}  Re8 {[%clk 0:00:12]} 30. Qxg6 {[%clk 0:00:46]}  Nd4 {[%clk 0:00:10]} 31. Bb1 {[%clk 0:00:44]}  Kg8 {[%clk 0:00:10]} 32. Nf6+ {[%clk 0:00:44]} 1-0


[Site "https://www.chess.com"]

[Event "Titled Tuesday Blitz October 11 Early 2022"]
[White "Matveeva, Olga"]
[Black "Devaev, Alexander"]
[WhiteFideId "24107018"]
[BlackFideId "4169395"]
[WhiteElo "2055"]
[BlackElo "2225"]
[Result "1-0"]
[Round "07"]
[TimeControl "180+1"]
[Date "2022.10.12"]
[WhiteClock "0:00:11"]
[BlackClock "0:01:03"]

1. d4 {[%clk 0:03:00]}  Nf6 {[%clk 0:02:59]} 2. c4 {[%clk 0:03:00]}  e6 {[%clk 0:02:58]} 3. g3 {[%clk 0:03:01]}  c5 {[%clk 0:02:58]} 4. d5 {[%clk 0:03:00]}  exd5 {[%clk 0:02:58]} 5. cxd5 {[%clk 0:03:01]}  d6 {[%clk 0:02:59]} 6. Nc3 {[%clk 0:03:01]}  g6 {[%clk 0:03:00]} 7. Nf3 {[%clk 0:03:01]}  Bg7 {[%clk 0:03:01]} 8. Bg2 {[%clk 0:03:02]}  O-O {[%clk 0:03:02]} 9. O-O {[%clk 0:03:02]}  Na6 {[%clk 0:02:57]} 10. Bf4 {[%clk 0:02:52]}  Re8 {[%clk 0:02:56]} 11. Nd2 {[%clk 0:02:47]}  Nh5 {[%clk 0:02:52]} 12. Be3 {[%clk 0:02:30]}  Rxe3 {[%clk 0:02:51]} 13. fxe3 {[%clk 0:02:30]}  Qe7 {[%clk 0:02:38]} 14. e4 {[%clk 0:02:27]}  Nf6 {[%clk 0:02:34]} 15. e3 {[%clk 0:02:23]}  Ng4 {[%clk 0:02:32]} 16. Qf3 {[%clk 0:02:16]}  Nxe3 {[%clk 0:02:33]} 17. Rf2 {[%clk 0:02:13]}  Ng4 {[%clk 0:02:31]} 18. Re2 {[%clk 0:02:10]}  Nb4 {[%clk 0:02:30]} 19. Nc4 {[%clk 0:02:01]}  Ne5 {[%clk 0:02:19]} 20. Nxe5 {[%clk 0:02:00]}  Bxe5 {[%clk 0:02:20]} 21. a3 {[%clk 0:01:56]}  Na6 {[%clk 0:02:18]} 22. Rf1 {[%clk 0:01:55]}  Bd7 {[%clk 0:02:18]} 23. h4 {[%clk 0:01:39]}  h5 {[%clk 0:02:16]} 24. Kh1 {[%clk 0:01:33]}  Bg4 {[%clk 0:02:15]} 25. Qf2 {[%clk 0:01:30]}  Bxe2 {[%clk 0:02:16]} 26. Nxe2 {[%clk 0:01:29]}  Nb8 {[%clk 0:02:11]} 27. b4 {[%clk 0:01:27]}  b6 {[%clk 0:02:00]} 28. Bh3 {[%clk 0:01:13]}  cxb4 {[%clk 0:01:56]} 29. axb4 {[%clk 0:01:12]}  a5 {[%clk 0:01:52]} 30. Qxb6 {[%clk 0:01:03]}  a4 {[%clk 0:01:52]} 31. Nd4 {[%clk 0:00:35]}  a3 {[%clk 0:01:47]} 32. Nc6 {[%clk 0:00:20]}  Nxc6 {[%clk 0:01:41]} 33. dxc6 {[%clk 0:00:21]}  d5 {[%clk 0:01:13]} 34. exd5 {[%clk 0:00:16]}  a2 {[%clk 0:01:12]} 35. Qb7 {[%clk 0:00:14]}  Qxb7 {[%clk 0:01:06]} 36. cxb7 {[%clk 0:00:14]}  Rb8 {[%clk 0:01:05]} 37. Bc8 {[%clk 0:00:12]}  a1=Q {[%clk 0:01:05]} 38. Rxa1 {[%clk 0:00:12]}  Bxa1 {[%clk 0:01:06]} 39. d6 {[%clk 0:00:12]}  Bf6 {[%clk 0:01:06]} 40. d7 {[%clk 0:00:12]}  Bd8 {[%clk 0:01:06]} 41. Kg2 {[%clk 0:00:12]}  Kg7 {[%clk 0:01:06]} 42. Kf3 {[%clk 0:00:12]}  Kf6 {[%clk 0:01:07]} 43. Ke4 {[%clk 0:00:13]}  Ke6 {[%clk 0:01:07]} 44. b5 {[%clk 0:00:12]}  Bc7 {[%clk 0:01:07]} 45. Kf3 {[%clk 0:00:11]}  f5 {[%clk 0:01:07]} 46. d8=Q+ {[%clk 0:00:11]}  Kf7 {[%clk 0:01:03]} 47. Qxc7+ {[%clk 0:00:11]} 1-0


[Site "https://www.chess.com"]

[Event "Titled Tuesday Blitz October 11 Early 2022"]
[White "Mirzoev, Azer"]
[Black "Siva Mahadevan"]
[WhiteFideId "13400304"]
[BlackFideId "25043153"]
[WhiteElo "2525"]
[BlackElo "2249"]
[Result "0-1"]
[Round "07"]
[TimeControl "180+1"]
[Date "2022.10.11"]
[WhiteClock "0:00:01"]
[BlackClock "0:00:33"]

1. d4 {[%clk 0:03:00]}  Nf6 {[%clk 0:02:59]} 2. Nf3 {[%clk 0:03:01]}  g6 {[%clk 0:02:59]} 3. Bg5 {[%clk 0:03:01]}  Bg7 {[%clk 0:03:00]} 4. Nbd2 {[%clk 0:03:00]}  O-O {[%clk 0:03:00]} 5. c3 {[%clk 0:02:59]}  d6 {[%clk 0:03:00]} 6. e4 {[%clk 0:02:58]}  h6 {[%clk 0:03:01]} 7. Bh4 {[%clk 0:02:58]}  c5 {[%clk 0:03:01]} 8. dxc5 {[%clk 0:02:57]}  dxc5 {[%clk 0:03:02]} 9. Be2 {[%clk 0:02:55]}  Nc6 {[%clk 0:03:02]} 10. O-O {[%clk 0:02:54]}  Nh5 {[%clk 0:03:02]} 11. Qc2 {[%clk 0:02:51]}  Qc7 {[%clk 0:03:01]} 12. Rfe1 {[%clk 0:02:48]}  b6 {[%clk 0:03:01]} 13. Nf1 {[%clk 0:02:46]}  g5 {[%clk 0:02:58]} 14. N3d2 {[%clk 0:02:39]}  Nf4 {[%clk 0:02:43]} 15. Bg3 {[%clk 0:02:38]}  Bb7 {[%clk 0:02:44]} 16. Ne3 {[%clk 0:02:38]}  e6 {[%clk 0:02:43]} 17. Bf1 {[%clk 0:02:35]}  Rad8 {[%clk 0:02:43]} 18. Ndc4 {[%clk 0:02:24]}  b5 {[%clk 0:02:38]} 19. Nd2 {[%clk 0:02:21]}  c4 {[%clk 0:02:36]} 20. a4 {[%clk 0:02:19]}  a6 {[%clk 0:02:36]} 21. Nf3 {[%clk 0:02:18]}  Ne7 {[%clk 0:02:02]} 22. h4 {[%clk 0:02:14]}  gxh4 {[%clk 0:01:48]} 23. Nxh4 {[%clk 0:02:08]}  Neg6 {[%clk 0:01:48]} 24. Nxg6 {[%clk 0:02:02]}  fxg6 {[%clk 0:01:49]} 25. axb5 {[%clk 0:02:01]}  axb5 {[%clk 0:01:49]} 26. Ra7 {[%clk 0:01:43]}  Qb6 {[%clk 0:01:35]} 27. Rea1 {[%clk 0:01:41]}  Nd3 {[%clk 0:01:35]} 28. Bxd3 {[%clk 0:01:31]}  Rxd3 {[%clk 0:01:36]} 29. Qe2 {[%clk 0:01:22]}  h5 {[%clk 0:01:22]} 30. Bh4 {[%clk 0:00:50]}  Bh6 {[%clk 0:01:19]} 31. Nf1 {[%clk 0:00:28]}  Rf4 {[%clk 0:01:13]} 32. Bg3 {[%clk 0:00:17]}  Rxe4 {[%clk 0:01:10]} 33. Qc2 {[%clk 0:00:17]}  Rg4 {[%clk 0:01:10]} 34. Qe2 {[%clk 0:00:03]}  Qc6 {[%clk 0:01:03]} 35. Rxb7 {[%clk 0:00:02]}  Qxb7 {[%clk 0:01:01]} 36. Qxe6+ {[%clk 0:00:02]}  Kh7 {[%clk 0:01:01]} 37. Ra6 {[%clk 0:00:01]}  Qd7 {[%clk 0:00:41]} 38. Qb6 {[%clk 0:00:01]}  Qf5 {[%clk 0:00:33]} 39. Ra7+ {[%clk 0:00:01]}  Rd7 {[%clk 0:00:33]} 0-1


[Site "https://www.chess.com"]

[Event "Titled Tuesday Blitz October 11 Early 2022"]
[White "Mohammadian, Mohammad"]
[Black "Smietanska, Wiktoria"]
[WhiteFideId "12566055"]
[BlackFideId "21869359"]
[WhiteElo "1489"]
[BlackElo "1854"]
[Result "0-1"]
[Round "07"]
[TimeControl "180+1"]
[Date "2022.10.12"]
[WhiteClock "0:00:07"]
[BlackClock "0:00:25"]

1. e4 {[%clk 0:03:00]}  c5 {[%clk 0:02:59]} 2. Nf3 {[%clk 0:02:59]}  d6 {[%clk 0:02:59]} 3. d4 {[%clk 0:02:59]}  cxd4 {[%clk 0:02:59]} 4. Nxd4 {[%clk 0:02:59]}  Nf6 {[%clk 0:02:59]} 5. Nc3 {[%clk 0:02:59]}  a6 {[%clk 0:03:00]} 6. Be2 {[%clk 0:02:58]}  e5 {[%clk 0:03:00]} 7. Nb3 {[%clk 0:02:57]}  Be7 {[%clk 0:02:58]} 8. Be3 {[%clk 0:02:57]}  O-O {[%clk 0:02:58]} 9. O-O {[%clk 0:02:56]}  Be6 {[%clk 0:02:58]} 10. f4 {[%clk 0:02:55]}  Nc6 {[%clk 0:02:55]} 11. f5 {[%clk 0:02:53]}  Bd7 {[%clk 0:02:52]} 12. Bd3 {[%clk 0:02:50]}  b5 {[%clk 0:02:52]} 13. a3 {[%clk 0:02:50]}  Qc8 {[%clk 0:02:45]} 14. Qe1 {[%clk 0:02:43]}  Qb7 {[%clk 0:02:37]} 15. Qf2 {[%clk 0:02:40]}  Ng4 {[%clk 0:02:34]} 16. Qf3 {[%clk 0:02:32]}  Nxe3 {[%clk 0:02:33]} 17. Qxe3 {[%clk 0:02:32]}  a5 {[%clk 0:02:21]} 18. Nd5 {[%clk 0:02:32]}  Bd8 {[%clk 0:02:14]} 19. c3 {[%clk 0:02:19]}  f6 {[%clk 0:02:08]} 20. Nd2 {[%clk 0:02:15]}  Ne7 {[%clk 0:02:03]} 21. Nxe7+ {[%clk 0:02:13]}  Bxe7 {[%clk 0:01:55]} 22. Kh1 {[%clk 0:02:12]}  Bc6 {[%clk 0:01:54]} 23. Nf3 {[%clk 0:02:11]}  d5 {[%clk 0:01:51]} 24. exd5 {[%clk 0:02:09]}  Bxd5 {[%clk 0:01:52]} 25. Qf2 {[%clk 0:02:06]}  e4 {[%clk 0:01:48]} 26. Nd4 {[%clk 0:01:51]}  exd3 {[%clk 0:01:35]} 27. Rad1 {[%clk 0:01:49]}  Bc5 {[%clk 0:01:33]} 28. Qg3 {[%clk 0:01:40]}  Rf7 {[%clk 0:01:28]} 29. Rfe1 {[%clk 0:01:33]}  Bxd4 {[%clk 0:01:23]} 30. cxd4 {[%clk 0:01:32]}  Bc4 {[%clk 0:01:22]} 31. Re3 {[%clk 0:01:28]}  Rd8 {[%clk 0:01:16]} 32. Rde1 {[%clk 0:01:26]}  Qd7 {[%clk 0:01:10]} 33. Qf3 {[%clk 0:01:14]}  d2 {[%clk 0:00:55]} 34. Rd1 {[%clk 0:01:11]}  Qxd4 {[%clk 0:00:54]} 35. h3 {[%clk 0:00:57]}  a4 {[%clk 0:00:48]} 36. Qg3 {[%clk 0:00:53]}  Bb3 {[%clk 0:00:42]} 37. Rxb3 {[%clk 0:00:28]}  axb3 {[%clk 0:00:41]} 38. Qxb3 {[%clk 0:00:28]}  Qe5 {[%clk 0:00:37]} 39. Qf3 {[%clk 0:00:17]}  Qxb2 {[%clk 0:00:33]} 40. Kh2 {[%clk 0:00:16]}  Re7 {[%clk 0:00:27]} 41. Qc6 {[%clk 0:00:07]}  Qe5+ {[%clk 0:00:25]} 0-1


[Site "https://www.chess.com"]

[Event "Titled Tuesday Blitz October 11 Early 2022"]
[White "Mrudul Dehankar"]
[Black "Karavade, Eesha"]
[WhiteFideId "25096990"]
[BlackFideId "5012600"]
[WhiteElo "2068"]
[BlackElo "2258"]
[Result "1-0"]
[Round "07"]
[TimeControl "180+1"]
[Date "2022.10.12"]
[WhiteClock "0:00:11"]
[BlackClock "0:00:12"]

1. e4 {[%clk 0:03:00]}  c5 {[%clk 0:02:58]} 2. Nf3 {[%clk 0:03:00]}  d6 {[%clk 0:02:57]} 3. d4 {[%clk 0:03:00]}  cxd4 {[%clk 0:02:56]} 4. Nxd4 {[%clk 0:03:00]}  Nf6 {[%clk 0:02:54]} 5. Nc3 {[%clk 0:03:00]}  a6 {[%clk 0:02:53]} 6. Bg5 {[%clk 0:03:01]}  e6 {[%clk 0:02:53]} 7. f4 {[%clk 0:03:01]}  Qc7 {[%clk 0:02:53]} 8. Qf3 {[%clk 0:03:01]}  Nbd7 {[%clk 0:02:52]} 9. O-O-O {[%clk 0:03:00]}  Be7 {[%clk 0:02:52]} 10. g4 {[%clk 0:03:00]}  b5 {[%clk 0:02:50]} 11. Bxf6 {[%clk 0:02:57]}  gxf6 {[%clk 0:02:34]} 12. a3 {[%clk 0:02:22]}  Bb7 {[%clk 0:02:33]} 13. f5 {[%clk 0:02:21]}  e5 {[%clk 0:02:19]} 14. Nb3 {[%clk 0:02:14]}  Nc5 {[%clk 0:02:02]} 15. Kb1 {[%clk 0:01:46]}  Rc8 {[%clk 0:01:50]} 16. Nd5 {[%clk 0:01:13]}  Bxd5 {[%clk 0:01:45]} 17. exd5 {[%clk 0:01:09]}  Nxb3 {[%clk 0:01:35]} 18. cxb3 {[%clk 0:01:07]}  Qc2+ {[%clk 0:01:24]} 19. Ka2 {[%clk 0:01:06]}  Bf8 {[%clk 0:01:12]} 20. Bd3 {[%clk 0:01:03]}  Qc7 {[%clk 0:01:07]} 21. h4 {[%clk 0:00:58]}  Rg8 {[%clk 0:01:03]} 22. g5 {[%clk 0:00:49]}  Be7 {[%clk 0:00:54]} 23. Qh5 {[%clk 0:00:43]}  fxg5 {[%clk 0:00:38]} 24. Qxh7 {[%clk 0:00:36]}  Rf8 {[%clk 0:00:31]} 25. f6 {[%clk 0:00:30]}  Bxf6 {[%clk 0:00:27]} 26. Rdf1 {[%clk 0:00:30]}  Bh8 {[%clk 0:00:20]} 27. hxg5 {[%clk 0:00:20]}  Qe7 {[%clk 0:00:19]} 28. g6 {[%clk 0:00:16]}  fxg6 {[%clk 0:00:16]} 29. Rxf8+ {[%clk 0:00:12]}  Qxf8 {[%clk 0:00:16]} 30. Bxg6+ {[%clk 0:00:10]}  Kd8 {[%clk 0:00:15]} 31. Qxh8 {[%clk 0:00:10]}  Qxh8 {[%clk 0:00:13]} 32. Rxh8+ {[%clk 0:00:11]}  Kc7 {[%clk 0:00:14]} 33. Rxc8+ {[%clk 0:00:11]}  Kxc8 {[%clk 0:00:14]} 34. Kb1 {[%clk 0:00:12]}  Kc7 {[%clk 0:00:14]} 35. Kc2 {[%clk 0:00:12]}  Kb6 {[%clk 0:00:14]} 36. Kd3 {[%clk 0:00:12]}  a5 {[%clk 0:00:14]} 37. b4 {[%clk 0:00:11]}  axb4 {[%clk 0:00:13]} 38. axb4 {[%clk 0:00:11]}  Kc7 {[%clk 0:00:13]} 39. Ke4 {[%clk 0:00:12]}  Kd7 {[%clk 0:00:13]} 40. Bf7 {[%clk 0:00:10]}  Ke7 {[%clk 0:00:13]} 41. Be6 {[%clk 0:00:11]}  Kd8 {[%clk 0:00:13]} 42. Kf5 {[%clk 0:00:11]}  Kc7 {[%clk 0:00:12]} 43. Kf6 {[%clk 0:00:12]}  e4 {[%clk 0:00:12]} 44. Bg4 {[%clk 0:00:12]}  e3 {[%clk 0:00:12]} 45. Kf5 {[%clk 0:00:11]} 1-0


[Site "https://www.chess.com"]

[Event "Titled Tuesday Blitz October 11 Early 2022"]
[White "Nozdrachev, Leonid"]
[Black "Seletsky, Grigory"]
[WhiteFideId "24113433"]
[BlackFideId "14112191"]
[WhiteElo "2249"]
[BlackElo "2492"]
[Result "1-0"]
[Round "07"]
[TimeControl "180+1"]
[Date "2022.10.12"]
[WhiteClock "0:01:34"]
[BlackClock "0:01:04"]

1. e4 {[%clk 0:02:58]}  e6 {[%clk 0:02:55]} 2. d4 {[%clk 0:02:57]}  d5 {[%clk 0:02:54]} 3. exd5 {[%clk 0:02:58]}  exd5 {[%clk 0:02:54]} 4. Nf3 {[%clk 0:02:57]}  Bd6 {[%clk 0:02:53]} 5. Bd3 {[%clk 0:02:50]}  Nf6 {[%clk 0:02:53]} 6. Qe2+ {[%clk 0:02:50]}  Qe7 {[%clk 0:02:53]} 7. Qxe7+ {[%clk 0:02:49]}  Kxe7 {[%clk 0:02:52]} 8. O-O {[%clk 0:02:48]}  Re8 {[%clk 0:02:51]} 9. Bg5 {[%clk 0:02:47]}  Nd7 {[%clk 0:02:50]} 10. c4 {[%clk 0:02:40]}  c6 {[%clk 0:02:47]} 11. cxd5 {[%clk 0:02:39]}  cxd5 {[%clk 0:02:47]} 12. Nc3 {[%clk 0:02:40]}  Kf8 {[%clk 0:02:46]} 13. Nb5 {[%clk 0:02:39]}  Bb8 {[%clk 0:02:45]} 14. Bd2 {[%clk 0:02:34]}  a6 {[%clk 0:02:40]} 15. Bb4+ {[%clk 0:02:33]}  Kg8 {[%clk 0:02:40]} 16. Nd6 {[%clk 0:02:33]}  Bxd6 {[%clk 0:02:39]} 17. Bxd6 {[%clk 0:02:32]}  Nf8 {[%clk 0:02:39]} 18. Rfe1 {[%clk 0:02:27]}  Be6 {[%clk 0:02:33]} 19. Ne5 {[%clk 0:02:20]}  N6d7 {[%clk 0:02:27]} 20. f3 {[%clk 0:02:16]}  Rac8 {[%clk 0:02:23]} 21. Kf2 {[%clk 0:02:15]}  f6 {[%clk 0:02:22]} 22. Nxd7 {[%clk 0:02:14]}  Bxd7 {[%clk 0:02:16]} 23. Rxe8 {[%clk 0:02:12]}  Rxe8 {[%clk 0:02:16]} 24. Rc1 {[%clk 0:02:12]}  Rc8 {[%clk 0:02:16]} 25. Rc5 {[%clk 0:02:10]}  Be6 {[%clk 0:01:53]} 26. Ke3 {[%clk 0:02:02]}  b6 {[%clk 0:01:48]} 27. Rc3 {[%clk 0:01:58]}  Rxc3 {[%clk 0:01:44]} 28. bxc3 {[%clk 0:01:59]}  b5 {[%clk 0:01:42]} 29. a4 {[%clk 0:01:51]}  Bd7 {[%clk 0:01:41]} 30. a5 {[%clk 0:01:49]}  Kf7 {[%clk 0:01:31]} 31. Bxf8 {[%clk 0:01:46]}  Kxf8 {[%clk 0:01:30]} 32. Bxh7 {[%clk 0:01:46]}  Kf7 {[%clk 0:01:28]} 33. Bd3 {[%clk 0:01:45]}  Be6 {[%clk 0:01:26]} 34. h4 {[%clk 0:01:45]}  Bd7 {[%clk 0:01:26]} 35. Kf4 {[%clk 0:01:43]}  Ke7 {[%clk 0:01:21]} 36. Bf5 {[%clk 0:01:42]}  Be6 {[%clk 0:01:20]} 37. Bxe6 {[%clk 0:01:36]}  Kxe6 {[%clk 0:01:20]} 38. g4 {[%clk 0:01:37]}  g6 {[%clk 0:01:20]} 39. h5 {[%clk 0:01:35]}  g5+ {[%clk 0:01:19]} 40. Ke3 {[%clk 0:01:35]}  Kf7 {[%clk 0:01:07]} 41. Kd3 {[%clk 0:01:34]}  f5 {[%clk 0:01:04]} 42. Kc2 {[%clk 0:01:34]} 1-0


[Site "https://www.chess.com"]

[Event "Titled Tuesday Blitz October 11 Early 2022"]
[White "Ohanyan, Emin"]
[Black "Aloma Vidal, Robert"]
[WhiteFideId "13312022"]
[BlackFideId "2260409"]
[WhiteElo "2302"]
[BlackElo "2435"]
[Result "1-0"]
[Round "07"]
[TimeControl "180+1"]
[Date "2022.10.11"]
[WhiteClock "0:00:05"]
[BlackClock "0:00:12"]

1. e4 {[%clk 0:03:00]}  e5 {[%clk 0:02:59]} 2. Nc3 {[%clk 0:03:00]}  Nf6 {[%clk 0:02:59]} 3. Bc4 {[%clk 0:02:59]}  Nxe4 {[%clk 0:02:58]} 4. Qh5 {[%clk 0:02:58]}  Nd6 {[%clk 0:02:58]} 5. Bb3 {[%clk 0:02:56]}  Be7 {[%clk 0:02:52]} 6. Nf3 {[%clk 0:02:11]}  Nc6 {[%clk 0:02:50]} 7. Nxe5 {[%clk 0:01:50]}  Nxe5 {[%clk 0:02:48]} 8. Qxe5 {[%clk 0:01:51]}  O-O {[%clk 0:02:48]} 9. O-O {[%clk 0:01:51]}  Bf6 {[%clk 0:02:39]} 10. Qg3 {[%clk 0:01:50]}  Nf5 {[%clk 0:02:38]} 11. Qd3 {[%clk 0:01:46]}  d6 {[%clk 0:02:10]} 12. Nd5 {[%clk 0:01:45]}  Be5 {[%clk 0:02:11]} 13. c3 {[%clk 0:01:42]}  c6 {[%clk 0:01:58]} 14. Ne3 {[%clk 0:01:40]}  Qh4 {[%clk 0:01:46]} 15. g3 {[%clk 0:01:31]}  Qh3 {[%clk 0:01:45]} 16. Qe4 {[%clk 0:01:21]}  Re8 {[%clk 0:01:26]} 17. Qg2 {[%clk 0:01:18]}  Nxe3 {[%clk 0:01:13]} 18. fxe3 {[%clk 0:01:16]}  Qxg2+ {[%clk 0:01:13]} 19. Kxg2 {[%clk 0:01:17]}  d5 {[%clk 0:01:13]} 20. e4 {[%clk 0:01:17]}  Bf6 {[%clk 0:00:46]} 21. exd5 {[%clk 0:01:15]}  Re2+ {[%clk 0:00:47]} 22. Kf3 {[%clk 0:00:30]}  Rxh2 {[%clk 0:00:46]} 23. d4 {[%clk 0:00:24]}  h5 {[%clk 0:00:46]} 24. dxc6 {[%clk 0:00:20]}  Bg4+ {[%clk 0:00:45]} 25. Ke4 {[%clk 0:00:20]}  bxc6 {[%clk 0:00:45]} 26. Bf4 {[%clk 0:00:15]}  Re8+ {[%clk 0:00:43]} 27. Be5 {[%clk 0:00:15]}  Re7 {[%clk 0:00:35]} 28. Rae1 {[%clk 0:00:10]}  Rxb2 {[%clk 0:00:31]} 29. Kd3 {[%clk 0:00:11]}  Bxe5 {[%clk 0:00:28]} 30. dxe5 {[%clk 0:00:04]}  Rd7+ {[%clk 0:00:24]} 31. Ke3 {[%clk 0:00:02]}  Re7 {[%clk 0:00:21]} 32. Kd4 {[%clk 0:00:01]}  Rd2+ {[%clk 0:00:20]} 33. Kc5 {[%clk 0:00:01]}  Be6 {[%clk 0:00:19]} 34. c4 {[%clk 0:00:02]}  Rc7 {[%clk 0:00:18]} 35. Rd1 {[%clk 0:00:02]}  Rxd1 {[%clk 0:00:17]} 36. Rxd1 {[%clk 0:00:03]}  Kh7 {[%clk 0:00:17]} 37. Rd8 {[%clk 0:00:04]}  Kg6 {[%clk 0:00:17]} 38. Kd6 {[%clk 0:00:04]}  Rb7 {[%clk 0:00:15]} 39. Kxc6 {[%clk 0:00:03]}  Rb6+ {[%clk 0:00:15]} 40. Kc7 {[%clk 0:00:03]}  Kf5 {[%clk 0:00:16]} 41. c5 {[%clk 0:00:03]}  Ra6 {[%clk 0:00:16]} 42. c6 {[%clk 0:00:02]}  Kxe5 {[%clk 0:00:15]} 43. Rd2 {[%clk 0:00:02]}  Rb6 {[%clk 0:00:13]} 44. Re2+ {[%clk 0:00:01]}  Kf6 {[%clk 0:00:14]} 45. Rd2 {[%clk 0:00:02]}  Bxb3 {[%clk 0:00:13]} 46. axb3 {[%clk 0:00:02]}  Rxb3 {[%clk 0:00:14]} 47. Kd7 {[%clk 0:00:02]}  Rxg3 {[%clk 0:00:13]} 48. c7 {[%clk 0:00:02]}  Rc3 {[%clk 0:00:14]} 49. Rd6+ {[%clk 0:00:03]}  Kg5 {[%clk 0:00:12]} 50. Rc6 {[%clk 0:00:04]}  Rd3+ {[%clk 0:00:12]} 51. Ke7 {[%clk 0:00:04]}  Re3+ {[%clk 0:00:12]} 52. Kxf7 {[%clk 0:00:05]} 1-0


[Site "https://www.chess.com"]

[Event "Titled Tuesday Blitz October 11 Early 2022"]
[White "Omariev, Maksim"]
[Black "Samant Aditya S"]
[WhiteFideId "4193423"]
[BlackFideId "35080580"]
[WhiteElo "2435"]
[BlackElo "2367"]
[Result "0-1"]
[Round "07"]
[TimeControl "180+1"]
[Date "2022.10.12"]
[WhiteClock "0:00:02"]
[BlackClock "0:00:14"]

1. g4 {[%clk 0:03:00]}  e5 {[%clk 0:02:55]} 2. Bg2 {[%clk 0:03:00]}  Nc6 {[%clk 0:02:56]} 3. c4 {[%clk 0:02:58]}  Bc5 {[%clk 0:02:50]} 4. Nc3 {[%clk 0:02:58]}  d6 {[%clk 0:02:50]} 5. h3 {[%clk 0:02:58]}  Nge7 {[%clk 0:02:50]} 6. e3 {[%clk 0:02:54]}  O-O {[%clk 0:02:51]} 7. Nge2 {[%clk 0:02:54]}  f5 {[%clk 0:02:49]} 8. d4 {[%clk 0:02:54]}  Bb6 {[%clk 0:02:46]} 9. Na4 {[%clk 0:02:02]}  Ba5+ {[%clk 0:02:40]} 10. Bd2 {[%clk 0:02:03]}  f4 {[%clk 0:02:18]} 11. exf4 {[%clk 0:01:50]}  exf4 {[%clk 0:02:15]} 12. Bd5+ {[%clk 0:01:28]}  Nxd5 {[%clk 0:01:41]} 13. cxd5 {[%clk 0:01:29]}  f3 {[%clk 0:01:11]} 14. dxc6 {[%clk 0:00:30]}  Bxd2+ {[%clk 0:01:10]} 15. Kxd2 {[%clk 0:00:13]}  Qg5+ {[%clk 0:01:06]} 16. Ke1 {[%clk 0:00:05]}  Re8 {[%clk 0:00:41]} 17. Qb3+ {[%clk 0:00:04]}  Be6 {[%clk 0:00:41]} 18. Qxf3 {[%clk 0:00:02]}  Bd5 {[%clk 0:00:41]} 19. Qg3 {[%clk 0:00:01]}  Bxh1 {[%clk 0:00:39]} 20. Nc3 {[%clk 0:00:02]}  Bxc6 {[%clk 0:00:38]} 21. f4 {[%clk 0:00:02]}  Qe7 {[%clk 0:00:36]} 22. d5 {[%clk 0:00:03]}  Bxd5 {[%clk 0:00:35]} 23. Qd3 {[%clk 0:00:03]}  Bc6 {[%clk 0:00:34]} 24. Kf2 {[%clk 0:00:03]}  Qh4+ {[%clk 0:00:34]} 25. Ng3 {[%clk 0:00:03]}  Qxh3 {[%clk 0:00:32]} 26. Nd5 {[%clk 0:00:04]}  Qxg4 {[%clk 0:00:22]} 27. Rg1 {[%clk 0:00:03]}  Bxd5 {[%clk 0:00:20]} 28. Qxd5+ {[%clk 0:00:02]}  Qe6 {[%clk 0:00:20]} 29. Qd3 {[%clk 0:00:01]}  Qf6 {[%clk 0:00:17]} 30. Nh5 {[%clk 0:00:01]}  Qh4+ {[%clk 0:00:17]} 31. Rg3 {[%clk 0:00:01]}  Qxh5 {[%clk 0:00:16]} 32. Qb3+ {[%clk 0:00:01]}  Kh8 {[%clk 0:00:16]} 33. Qxb7 {[%clk 0:00:02]}  Re2+ {[%clk 0:00:14]} 0-1


[Site "https://www.chess.com"]